Cogmind - Beta 9.2 @@@ ROGUE MODE // 2019.11.18 @ 01:15:52 Player: Cassie Rose Result: Destroyed by S-10 Pest with Light Assault Rifle Performance ------------- Evolutions (1) 500 Regions Visited (3) 600 Robots Destroyed (62) 310 Value Destroyed (1309) 1309 Prototype IDs (4) 80 Alien Tech Used (0) 0 Bonus (0) 0 TOTAL SCORE: 2799 Bonus ------- None Cogmind --------- Core Integrity 0/400 Matter 199/300 Energy 153/265 System Corruption 0% Temperature Cool (0) Movement Treading (160) Location -9/Storage Parts ------- > --- POWER (1) -------- Improved Ion Engine > --- PROPULSION (3) --- Light Treads Light Treads Light Treads > --- UTILITY (3) ------ High-capacity Storage Unit Improved Sensor Array ECM Suite > --- WEAPON (2) ------- Mini Grenade Launcher > --- INVENTORY (12) --- Improved Flight Unit Sensor Array Signal Interpreter Transport Network Coupler Improved Medium Laser Mini Grenade Launcher Datajack Peak State ------------ > --- POWER ------------ Heavy Ion Engine > --- PROPULSION ------- Light Treads Light Treads Improved Flight Unit > --- UTILITY ---------- High-capacity Storage Unit Sensor Array Hacking Suite > --- WEAPON ----------- Improved Medium Laser Mini Grenade Launcher > --- INVENTORY -------- Sensor Array Signal Interpreter Transport Network Coupler ECM Suite Mini Grenade Launcher Datajack Datajack Flail [Rating: 19] Favorites ----------- Power Light Ion Engine Engine Light Ion Engine Power Core Light Nuclear Core Propulsion Aluminum Leg Treads Light Treads Leg Aluminum Leg Wheel Wheel Flight Unit Improved Flight Unit Utility High-capacity Storage Unit Device Sensor Array Storage High-capacity Storage Unit Hackware Hacking Suite Weapon Assault Rifle Energy Gun EM Pulse Gun Ballistic Gun Assault Rifle Launcher Mini Grenade Launcher Special Weapon Plasma Cutter Impact Weapon Flail Slashing Weapon Mining Claw Special Melee Weapon Datajack Build | -11 -10 -9 -9 ------- Run | Scr Mat Mat Sto Slots Evolved 2 | . . 2 . Power . | . . . . Propulsion 1 | . . 1 . Utility 1 | . . 1 . Weapon . | . . . . Parts Attached 62 | 9 18 27 8 Power 10 | 1 1 7 1 Engine 8 | 1 1 5 1 Core 2 | . . 2 . Reactor . | . . . . Propulsion 25 | 3 8 11 3 Treads 7 | . . 4 3 Leg 3 | . 3 . . Wheel 5 | 3 2 . . Hover . | . . . . Flight 10 | . 3 7 . Utility 7 | 2 2 2 1 Device 4 | 1 1 1 1 Storage 2 | 1 1 . . Processor . | . . . . Hackware 1 | . . 1 . Protection . | . . . . Artifact . | . . . . Weapon 20 | 3 7 7 3 Energy Gun 5 | 1 2 2 . Energy Cannon . | . . . . Ballistic Gun 2 | 2 . . . Ballistic Cannon . | . . . . Launcher 2 | . . 1 1 Special Weapon 3 | . 2 1 . Impact Weapon 3 | . . 2 1 Slashing Weapon 2 | . 1 1 . Piercing Weapon . | . . . . Special Melee Weapon 3 | . 2 . 1 Unidentified Prototypes 3 | . 1 2 . Parts Lost 21 | . 2 14 5 Power 5 | . . 4 1 Propulsion 8 | . 1 5 2 Utility 1 | . . 1 . Weapon 7 | . 1 4 2 Highest Loss Streak 7 | . 2 7 5 Average Slot Usage (%) 92 | . 93 90 95 Engine 11 | . 14 7 11 Treads 3 | . . 2 31 Leg 8 | . 13 3 . Wheel 3 | . 7 . . Flight 12 | . 6 22 . Device 13 | . 14 11 22 Storage 12 | . 14 11 11 Hackware 4 | . . 10 . Energy Gun 3 | . 2 3 5 Ballistic Gun 3 | . 7 . . Launcher 1 | . . 1 7 Special Weapon 3 | . 7 . . Impact Weapon 3 | . . 8 3 Slashing Weapon 1 | . . 2 . Special Melee Weapon 3 | . 3 2 1 Naked Turns . | . . . . Heaviest Build 46 | 12 40 46 46 Greatest Support 60 | 26 20 40 60 Greatest Overweight (x) 6 | 2 3 6 2 Average Overweight (x) . | . . 1 . Largest Inventory Capacity 12 | 6 12 12 12 Average Capacity 10 | 5 10 12 12 Most Carried 12 | 6 12 12 10 Average Carried 9 | 3 9 9 7 Final Capacity 12 | 6 12 12 12 Final Carried 12 | 5 12 8 7 Class Distribution -------------------- 79% | Mutant 12% | Sprinter 8% | Scavenger-Mutant Dominant Class ---------------- Mutant | -10/Materials Mutant | -9/Materials Mutant | -9/Storage Resources | -11 -10 -9 -9 ----------- Run | Scr Mat Mat Sto Matter Collected 1004 | 260 440 199 105 Remotely . | . . . . Salvage Created 2058 | 210 711 935 202 Parts 139 | 18 41 62 18 Haulers Intercepted 3 | . 1 2 . Recyclers Shooed 4 | 1 3 . . Parts Field Recycled . | . . . . Retrieved Matter . | . . . . Parts Self-Destructed . | . . . . Prevented . | . . . . Kills | -11 -10 -9 -9 ------- Run | Scr Mat Mat Sto Combat Hostiles Destroyed 37 | . 9 21 7 Melee 7 | . . 6 1 Guns 16 | . 7 9 . Cannons 2 | . 2 . . AOE 9 | . . 3 6 Classes Destroyed 10 | 3 6 1 . Worker 4 | 2 . 2 . Builder 1 | . 1 . . Tunneler 5 | 5 . . . Hauler 3 | . 1 2 . Recycler 5 | 1 3 1 . Operator 1 | . 1 . . Watcher 6 | . 2 3 1 Swarmer 11 | . 3 6 2 Grunt 22 | . 6 12 4 Sentry 4 | . . 3 1 Best Kill Streak 8 | 8 6 5 6 Combat Bots Only 6 | . 5 5 6 Max Kills in Single Turn 3 | 1 1 2 3 Gunslinging . | . . . . Exploded 3 | . . 1 3 Melee 1 | . . 1 1 Uniques/NPCs Destroyed . | . . . . Combat | -11 -10 -9 -9 -------- Run | Scr Mat Mat Sto Damage Taken 2153 | . 517 1179 457 Core 492 | . 87 363 42 Absorbed by Shields . | . . . . Core Remaining (%) 82 | 100 65 . . Volleys Fired 118 | 13 63 37 5 Largest 2 | 2 2 2 1 Hottest 86 | 40 40 86 30 Shots Fired 165 | 26 95 39 5 Gun 130 | 26 74 30 . Cannon . | . . . . Launcher 13 | . . 8 5 Special 22 | . 21 1 . Kinetic 80 | 26 54 . . Thermal 30 | . 21 9 . Explosive 13 | . . 8 5 Electromagnetic 42 | . 20 22 . Robot Hit Streak 13 | 7 13 9 4 Robot Miss Streak 4 | 4 3 2 2 Penetration Max . | . . . . Secondary Targets 1 | . 1 . . Max Gunslinging Chain 1 | . 1 . . Shots Hit Robots 166 | 12 71 73 10 Core Hits 75 | 8 27 32 8 Critical Hits 3 | . 3 . . Critical Kills 1 | . 1 . . Critical Parts Destroyed 2 | . 2 . . Melee Attacks 68 | . 3 55 10 Impact 52 | . . 45 7 Slashing 10 | . . 10 . Piercing . | . . . . Sneak Attacks 5 | . 3 2 . Combat Hostiles . | . . . . Follow-up Attacks 6 | . . 6 . Damage Inflicted 3405 | 189 915 1779 522 Guns 1166 | 189 653 324 . Cannons . | . . . . Explosions 858 | . 39 451 368 Melee 1158 | . . 1004 154 Ramming . | . . . . Kinetic 632 | 189 443 . . Thermal 381 | . 262 119 . Explosive 819 | . . 451 368 Electromagnetic 415 | . 210 205 . Impact 941 | . . 787 154 Slashing 217 | . . 217 . Piercing . | . . . . Highest Corruption . | . . . . Average Corruption . | . . . . Corruption Purged . | . . . . Overload Shots . | . . . . Overflow Damage 97 | . . 66 31 Projectiles . | . . . . Explosions 1 | . . . 1 Melee 96 | . . 66 30 Knockbacks 5 | . . 5 . Impact 5 | . . 5 . Kinetic . | . . . . Secondary . | . . . . Self-Inflicted Damage 94 | . 31 30 33 Shots 3 | . 1 1 1 Rammed . | . . . . Targets Rammed . | . . . . Kicked . | . . . . Crushed . | . . . . Highest Temperature 205 | . 205 175 2 Average Temperature 34 | . 40 32 2 Received Heat Transfer 792 | . 201 495 96 Siege Activations . | . . . . Robots Corrupted . | . . . . Combat Hostiles . | . . . . Parts Fried 12 | . 6 4 2 Impact Corruptions 7 | . . 6 1 Robots Melted . | . . . . Combat Hostiles . | . . . . Parts Melted 3 | . 1 2 . Heat Transferred 1136 | . 877 259 . Parts Sabotaged . | . . . . Parts Stolen . | . . . . Parts Stripped . | . . . . Power Chain Reactions 1 | . 1 . . Missiles Intercepted . | . . . . Alert | -11 -10 -9 -9 ------- Run | Scr Mat Mat Sto Peak Influence 326 | 40 326 297 215 Average Influence 117 | 10 128 128 69 Maximum Alert Level 1 | . 1 1 1 Low Security (%) 76 | 100 80 63 93 Level 1 23 | . 19 36 6 Level 2 . | . . . . Level 3 . | . . . . Level 4 . | . . . . Level 5 . | . . . . High Security . | . . . . Max Security . | . . . . Squads Dispatched 7 | . 2 2 3 Investigation 3 | . 1 1 1 Extermination . | . . . . Reinforcement 3 | . 1 1 1 Assault . | . . . . Garrison 1 | . . . 1 Intercept . | . . . . Construction Impeded . | . . . . Haulers Reinforced . | . . . . Stealth | -11 -10 -9 -9 --------- Run | Scr Mat Mat Sto Distress Signals 4 | . . 4 . Communications Jammed . | . . . . Distress Signals . | . . . . Times Spotted 74 | . 29 31 14 Peak Tracking Total 8 | . 4 8 3 Tactical Retreats 12 | . 10 2 . Traps | -11 -10 -9 -9 ------- Run | Scr Mat Mat Sto Traps Triggered 2 | . . 1 1 Indirectly . | . . . . Trap Hack Attempts . | . . . . Triggered . | . . . . Disarmed . | . . . . Reprogrammed . | . . . . Reused . | . . . . Traps Extracted . | . . . . Installed . | . . . . Triggered 1 | . 1 . . Machines | -11 -10 -9 -9 ---------- Run | Scr Mat Mat Sto Machines Disabled 4 | . . . 4 Max in Single Turn 2 | . . . 2 Machines Sabotaged . | . . . . Garrisons Compromised . | . . . . Overloaded Fab Kills . | . . . . Fab Network Shutdowns . | . . . . Hacking | -11 -10 -9 -9 --------- Run | Scr Mat Mat Sto Machines Accessed 8 | . 5 1 2 Terminals 7 | . 5 1 1 Fabricators . | . . . . Repair Stations . | . . . . Recycling Units . | . . . . Scanalyzers . | . . . . Garrison Access 1 | . . . 1 Total Hacks 20 | . 14 2 4 Successful 10 | . 6 1 3 Failed 10 | . 8 1 1 Catastrophic 2 | . 2 . . Database Lockouts . | . . . . Manual 21 | . 13 2 6 Terminals 19 | . 14 2 3 Fabricators . | . . . . Repair Stations . | . . . . Recycling Units . | . . . . Scanalyzers . | . . . . Garrison Access 1 | . . . 1 Terminal Hacks 5 | . 4 . 1 Prototype ID Bank 1 | . 1 . . Level Access Points 1 | . 1 . . Branch Access Points 1 | . 1 . . Unreport Threat 2 | . 1 . 1 Fabricator Hacks . | . . . . Repair Station Hacks . | . . . . Recycling Unit Hacks . | . . . . Scanalyzer . | . . . . Garrison Access Hacks 1 | . . . 1 Coupler Status 1 | . . . 1 Unauthorized Hacks 14 | . 8 3 3 Terminals 4 | . 2 1 1 Botnet 4 | . 2 1 1 Fabricators . | . . . . Repair Stations . | . . . . Recycling Units . | . . . . Scanalyzers . | . . . . Garrison Access . | . . . . Data Cores Recovered . | . . . . Used . | . . . . Hacking Detections 8 | . 5 1 2 Full Trace Events 2 | . 1 . 1 Feedback Events . | . . . . Feedback Blocked . | . . . . Robot Schematics Acquired . | . . . . Robots Built . | . . . . Matter . | . . . . Time . | . . . . Total Robot Build Rating . | . . . . Part Schematics Acquired . | . . . . Parts Built . | . . . . Matter . | . . . . Time . | . . . . Total Part Build Rating . | . . . . Parts Repaired . | . . . . Time . | . . . . Parts Recycled . | . . . . Recycled Matter . | . . . . Retrieved Matter . | . . . . Retrieved Components . | . . . . Parts Scanalyzed . | . . . . Part Schematics Acquired . | . . . . Parts Damaged . | . . . . Bothacking | -11 -10 -9 -9 ------------ Run | Scr Mat Mat Sto Used RIF Installer . | . . . . Robots Hacked 1 | . 1 . . Non-combat 1 | . 1 . . Combat . | . . . . Robot Hacks Applied 3 | . 3 . . parse_system 1 | . 1 . . no_distress 1 | . 1 . . find_recycling 1 | . 1 . . Relay Couplers Released . | . . . . Robots Rewired . | . . . . Allies Hacked . | . . . . Hacks Repelled . | . . . . Allies | -11 -10 -9 -9 -------- Run | Scr Mat Mat Sto Total Allies . | . . . . Largest Group . | . . . . Highest-Rated Group . | . . . . Highest-Rated Ally . | . . . . Total Orders . | . . . . Ally Attacks . | . . . . Total Damage . | . . . . Kills . | . . . . Allies Corrupted . | . . . . Allies Melted . | . . . . Intel | -11 -10 -9 -9 ------- Run | Scr Mat Mat Sto Robot Analysis Total . | . . . . Derelict Logs Recovered . | . . . . Drone Launches . | . . . . Drone Recoveries . | . . . . Exploration | -11 -10 -9 -9 ------------- Run | Scr Mat Mat Sto Turns Passed 2077 | 114 1013 775 175 Spaces Moved 1153 | 58 766 260 69 Core 10 | 10 . . . Treads 107 | . . 38 69 Legs 383 | . 310 73 . Wheels 108 | 48 60 . . Hover . | . . . . Flight 545 | . 396 149 . Fastest Speed 32 | 50 32 150 160 Average Speed 118 | 84 93 182 179 Slowest Speed 455 | 150 242 455 200 Overloaded Moves . | . . . . Propulsion Burnouts . | . . . . Robots Hopped 2 | . 2 . . Cave-ins Triggered . | . . . . Exploration Rate (%) 31 | 4 85 21 14 Regions Visited 3 Branch Regions 1 Pre-discovered Areas . | . . . . Known Exits Taken 1 | . 1 . . Unknown Exits Taken 2 | 1 . 1 . Scrap Searched . | . . . . Spaces Dug . | . . . . Terrain Destroyed 97 | . 2 54 41 Melee . | . . . . Projectile . | . . . . AOE 97 | . 2 54 41 Actions | -11 -10 -9 -9 --------- Run | Scr Mat Mat Sto Total 1580 | 96 938 445 101 Wait 118 | . 62 53 3 Move 1147 | 57 762 259 69 Hop 1 | . 1 . . Pick Up 51 | 14 16 16 5 Fast Attach 5 | 1 4 . . Attach 32 | 6 1 20 5 Detach . | . . . . Swap 25 | 2 13 7 3 Drop 23 | 3 13 6 1 Fire 118 | 13 63 37 5 Melee 60 | . 3 47 10 Ram . | . . . . Kick . | . . . . Crush . | . . . . Escape Stasis . | . . . . Rewire . | . . . . Trap . | . . . . Miscellaneous . | . . . . Route ------- -11/Scrapyard -10/Materials (discovered 4 exits: *Mat x3 / *Min) -9/Materials -9/Storage History --------- Turn | Location | Event 42 | -11/Scrapyard | Discovered new exit (range 15) 115 | -11/Scrapyard | Entered Materials 186 | -10/Materials | Discovered new exit (range 7) 317 | -10/Materials | Identified exit to Mines 684 | -10/Materials | Build established: Mutant 764 | -10/Materials | Discovered new exit (range 16) 890 | -10/Materials | Discovered new exit (range 15) 1104 | -10/Materials | Identified exit to Materials 1128 | -10/Materials | Entered another Materials area 1128 | -9/Materials | Evolved 2 slots: Propulsion x1, Utility x1 1373 | -9/Materials | Lost 7 parts (2p2n3w) 1577 | -9/Materials | Core integrity fell below 50% 1767 | -9/Materials | Core integrity fell below 20% 1803 | -9/Materials | Lost 3 parts (1p1n1w) 1860 | -9/Materials | Discovered new exit (range 11) 1903 | -9/Materials | Entered Storage 2007 | -9/Storage | Garrison activated, responded to threat 2078 | -9/Storage | Destroyed by S-10 Pest with Light Assault Rifle Last Messages --------------- 02032_ Acquired Imp. Ion Engine. 02038_ Acquired Lgt. Treads. 02050_ G-34 Mercenary destroyed. 02050_ Transfer Shaft disabled. 02053_ G-34 Mercenary destroyed. 02053_ S-10 Pest destroyed. 02054_ Flail destroyed. 02056_ Destroyed Flight Unit. 02056_ Terminal disabled. 02058_ S-10 Pest destroyed. 02059_ The unstable cave ceiling collapses. 02063_ Triggered Blade Trap. 02063_ Massive razor-sharp blades shoot up from within the floor. 02063_ Lgt. Treads severed. 02065_ Acquired Lgt. Treads. 02067_ Compression Vault explodes. 02067_ Y-45 Defender destroyed. 02067_ Compression Vault explodes. 02073_ The unstable cave ceiling collapses. 02074_ Acquired 37 matter. Map ----- +----------------------------------------------------+ | | | | | | | | | | | | | | | | | | | | | | | | | | | | | | | | | | | | | | | | | | | | | ???????????????????##### # #????????????? | | ???????????????????# #????????????? | | ????????????????????# #????????????? | | ????????????????????# @ #????????????? | | ????????????????????# * #????????????? | | ???????????????????## #????????????? | | ???????????????##### ##########???? | | ???????????? s #???? | | ??????????? [ ** #???? | | ??????????? = = * #???? | | ????????????####### * ### ####???? | | ??????????????????### = # ##????? | | ????????????????????#" ##????? | | ????????????????????#" "" = = % #????? | | ????????????????????#"" """ % = #????? | | ????????????????????### #????? | | ??????????????????????# """ #????? | | ??????????????????????# """ # ##????? | | ??????????????????????# """ # !#?????? | | ??????????????????????# ##" "######?????? | | ??????????????????????###"T"#####"G"#??????????? | | ????????????????????????####????#"""#??????????? | | ????????????????????????????????#####??????????? | | ???????????????????????????????????????????????? | | ???????????????????????????????????????????????? | | ???????????????????????????????????????????????? | | ???????????????????????????????????????????????? | | ???????????????????????????????????????????????? | +----------------------------------------------------+ Best States ------------- Heat Dissipation 28 Energy Generation 14 Energy Capacity 280 Matter Stores 300 Matter Capacity 300 Sight Range 16 Robot Scan Range 13 Terrain Scan Range 16 Terrain Scan Density 10 ECM Strength 1 Evasion (%) 63 Recoil Reduction 3 Offensive Hacking 10 Item Schematics ----------------- None Robot Schematics ------------------ None Fabricated ------------ Nothing Alien Tech Used ----------------- None Achievements -------------- None Challenges ------------ None Game ------ Seed ChipAccelerationBattery Manual? 0 Play Time 00:46:21 Cumulative 19.0 hours Start 2019.11.18 @ 00:28:05 End 2019.11.18 @ 01:15:52 Sessions 1 Manual Loads 0 Difficulty Rogue Special Mode None Game No. 27 Rogue 27 Adventurer 0 Explorer 0 Win Type - Total 0 Types 0/0/0/0/0/0/0 Lore% 20 Gallery% 15 Achievement% 17 Wizard Run 0 Options --------- ASCII 0 Keyboard 0 Movement Mouse Keybinds 0 Fullscreen 1 Font 18/X11 Map View 76x50 Tactical HUD 1 Map Filters NONE Filters LOW_CONTRAST(13,24,33) Steam 1 RUN: 4dbe600c-25cb-4a2a-ae5d-3a76ad98c247